bitfinex/quotes_BTCUSD_20230117
["timestamp","ask_amount","ask_price","bid_price","bid_amount"]
[1673982657252,0.085,21324.0,21323.0,1.2697649]
[1673982657514,0.468908,21327.0,21323.0,1.27464616]
[1673982657814,0.9989,21328.0,21324.0,0.73258749]
[1673982658164,0.468938,21330.0,21326.0,0.0748]
[1673982658343,0.468938,21330.0,21327.0,0.57106449]
[1673982658603,0.00281363,21330.0,21327.0,0.57106449]
[1673982659107,0.00281363,21330.0,21327.0,0.468884]
[1673982659836,0.091,21328.0,21327.0,0.468884]
[1673982660084,0.00281363,21330.0,21327.0,0.468884]
[1673982660341,0.09381363,21330.0,21327.0,0.468884]
[1673982660630,0.00281363,21330.0,21327.0,0.468884]
[1673982660876,0.0911,21330.0,21328.0,0.07916989]
[1673982661130,0.0911,21330.0,21329.0,0.799382]
[1673982661376,0.0911,21330.0,21329.0,0.543245]
[1673982662404,0.0911,21330.0,21329.0,1.01209]
[1673982662920,0.0911,21330.0,21329.0,0.0744]
[1673982663298,0.15,21332.0,21329.0,0.0744]
[1673982663443,0.091,21330.0,21328.0,0.00506989]
[1673982663703,0.091,21330.0,21328.0,0.47393589]
[1673982664218,0.00271363,21331.0,21328.0,0.94280289]
[1673982664525,1.72706809,21333.0,21328.0,0.94280289]
[1673982664724,1.72706809,21333.0,21329.0,0.10218049]
[1673982664986,1.72706809,21333.0,21329.0,1.03985449]
[1673982664987,0.091,21330.0,21329.0,1.03985449]
[1673982665255,0.11992539,21330.0,21329.0,0.937674]
[1673982665783,0.02892539,21330.0,21329.0,0.937674]
[1673982666587,0.11992539,21330.0,21329.0,0.468843]
[1673982666842,0.11992539,21330.0,21329.0,0.453843]
[1673982667198,0.11992539,21330.0,21328.0,0.47393589]
[1673982669061,0.02892539,21330.0,21328.0,0.468866]
[1673982669313,0.02892539,21330.0,21328.0,0.937733]
[1673982669314,0.11992539,21330.0,21328.0,0.937733]
[1673982670391,0.11992539,21330.0,21328.0,0.927733]
[1673982670897,0.12263902,21330.0,21328.0,0.927733]
[1673982671355,0.12263902,21330.0,21328.0,0.937734]
[1673982671357,0.11992539,21330.0,21328.0,0.937734]
[1673982671864,0.58875139,21330.0,21327.0,0.543675]
[1673982672118,0.11992539,21330.0,21328.0,0.0748]
[1673982672391,0.12263902,21330.0,21328.0,0.0748]
[1673982672887,0.12263902,21330.0,21328.0,0.543666]
[1673982672888,0.11992539,21330.0,21328.0,0.543666]
[1673982673414,0.02892539,21330.0,21328.0,0.533666]
[1673982673706,0.02892539,21330.0,21328.0,1.002533]
[1673982673948,0.02892539,21330.0,21329.0,0.3748]
[1673982674213,0.02890622,21332.0,21330.0,0.2842]
[1673982674463,0.02890622,21332.0,21331.0,0.1487]
[1673982674723,0.02890622,21332.0,21331.0,1.736808]
[1673982675009,0.02890622,21332.0,21331.0,0.0743]
[1673982675234,0.02890622,21332.0,21331.0,0.543101]
[1673982675500,0.04090622,21332.0,21331.0,0.0743]
[1673982675765,0.02890622,21332.0,21331.0,0.0743]
[1673982676313,0.11390622,21332.0,21330.0,0.468808]
[1673982676541,0.02890622,21332.0,21330.0,0.458808]
[1673982676805,0.02890622,21332.0,21330.0,0.927631]
[1673982677830,0.03161985,21332.0,21330.0,0.927631]
[1673982678110,0.7661358,21332.0,21330.0,0.002]
[1673982678361,0.320561,21331.0,21328.0,0.468865]
[1673982678625,0.65953195,21331.0,21330.0,0.002]
[1673982678981,0.789367,21331.0,21330.0,0.002]
[1673982679137,0.320561,21331.0,21329.0,0.93767]
[1673982679398,0.35288885,21332.0,21328.0,0.937695]
[1673982679655,0.94340063,21332.0,21328.0,0.937695]
[1673982679911,1.15350576,21332.0,21328.0,0.937695]
[1673982680203,0.074,21331.0,21328.0,0.939695]
[1673982680470,1.08035672,21332.0,21328.0,0.937695]
[1673982680726,1.16335672,21332.0,21328.0,0.938695]
[1673982680977,1.55037213,21332.0,21328.0,0.938695]
[1673982681229,0.02677835,21330.0,21328.0,0.938695]
[1673982681485,0.49560335,21330.0,21328.0,0.001]
[1673982681737,0.320561,21329.0,21328.0,0.001]
[1673982681996,1.258251,21329.0,21328.0,0.001]
[1673982682501,1.258251,21329.0,21324.0,0.468938]
[1673982682764,0.51128695,21328.0,21324.0,0.468938]
[1673982682987,0.19072595,21328.0,21324.0,0.468938]
[1673982683280,0.49562035,21330.0,21325.0,0.00485052]
[1673982683539,0.57862035,21330.0,21328.0,0.001]
[1673982683794,0.58133398,21330.0,21328.0,0.001]
[1673982684075,0.02677835,21330.0,21328.0,0.10218049]
[1673982684331,0.02677835,21330.0,21328.0,0.468866]
[1673982684840,0.10977835,21330.0,21328.0,0.469866]
[1673982685607,0.10977835,21330.0,21328.0,0.938733]
[1673982687944,0.11249198,21330.0,21328.0,0.938733]
[1673982689483,0.10977835,21330.0,21328.0,0.938733]
[1673982691825,0.11249198,21330.0,21328.0,0.938733]
[1673982692840,0.10977835,21330.0,21328.0,0.938733]
[1673982693373,0.10977835,21330.0,21329.0,0.256139]
[1673982693634,0.10977835,21330.0,21329.0,1.49872194]
[1673982693889,0.10977835,21330.0,21329.0,1.71266277]
[1673982694654,0.01677835,21330.0,21329.0,1.57352194]
[1673982694657,0.01677835,21330.0,21329.0,1.71266277]
[1673982694919,0.09977835,21330.0,21329.0,1.71366277]
[1673982695175,0.083,21330.0,21329.0,1.71366277]
[1673982695429,0.083,21330.0,21329.0,1.57452194]
[1673982695948,0.083,21330.0,21329.0,1.56952194]
[1673982696461,0.083,21330.0,21329.0,1.06821579]
[1673982697236,0.083,21330.0,21329.0,1.01838294]
[1673982697495,0.083,21330.0,21329.0,1.06120694]
[1673982698288,0.10852095,21330.0,21329.0,1.06120694]
[1673982699038,0.10852095,21330.0,21329.0,1.01838294]
[1673982701129,0.10852095,21330.0,21329.0,0.94358294]
[1673982701916,0.09852095,21330.0,21329.0,0.94358294]
[1673982702176,0.09852095,21330.0,21329.0,0.001]
[1673982702693,0.24852095,21330.0,21329.0,0.001]
[1673982703208,0.56910895,21330.0,21329.0,0.001]
[1673982704490,1.03793195,21330.0,21329.0,0.001]
[1673982704746,1.17800204,21330.0,21329.0,0.001]
[1673982705526,1.64682504,21330.0,21329.0,0.001]
[1673982705785,1.85693017,21330.0,21329.0,0.001]
[1673982706297,1.8562545,21330.0,21329.0,0.001]
[1673982707608,1.64614937,21330.0,21329.0,0.001]
[1673982707887,1.8562545,21330.0,21329.0,0.001]
[1673982708161,1.64614937,21330.0,21329.0,0.001]
[1673982708716,1.8562545,21330.0,21329.0,0.001]
[1673982708983,1.64614937,21330.0,21329.0,0.001]
[1673982709771,0.55850337,21330.0,21329.0,0.001]
[1673982710287,0.41843328,21330.0,21329.0,0.001]
[1673982710539,0.09784528,21330.0,21329.0,0.001]
[1673982711062,0.09784528,21330.0,21329.0,0.09563]
[1673982711351,0.09784528,21330.0,21329.0,1.03332]
[1673982712903,0.09784528,21330.0,21329.0,1.60297814]
[1673982713771,0.09784528,21330.0,21329.0,1.64580214]
[1673982714055,0.09784528,21330.0,21329.0,1.94580214]
[1673982714310,0.09784528,21330.0,21329.0,1.64580214]
[1673982714564,0.09784528,21330.0,21329.0,1.94580214]
[1673982714814,0.08784528,21330.0,21329.0,1.38672644]
[1673982715394,0.08784528,21330.0,21329.0,1.38703495]
[1673982716992,0.08784528,21330.0,21329.0,1.38672644]
[1673982717870,0.08803928,21330.0,21329.0,1.38672644]
[1673982718132,0.08803928,21330.0,21329.0,1.34390244]
[1673982718358,0.08803928,21330.0,21329.0,1.33890244]
[1673982719491,0.08803928,21330.0,21329.0,0.61248214]
[1673982719713,0.08803928,21330.0,21329.0,1.03850314]
[1673982719926,0.08803928,21330.0,21329.0,0.56965814]
[1673982720637,0.08803928,21330.0,21329.0,1.50734814]
[1673982720869,0.08803928,21330.0,21329.0,1.55017214]
[1673982721779,0.08803928,21330.0,21329.0,1.50734814]
[1673982722021,0.08803928,21330.0,21329.0,1.55017214]
[1673982722237,0.08803928,21330.0,21329.0,2.94452518]
[1673982722454,0.08803928,21330.0,21329.0,2.27219341]
[1673982723171,0.08803928,21330.0,21329.0,2.06348217]
[1673982723394,0.08803928,21330.0,21329.0,2.27219341]
[1673982724073,0.08803928,21330.0,21329.0,2.32016916]
[1673982724305,0.08803928,21330.0,21329.0,2.21348217]
[1673982724530,0.08803928,21330.0,21329.0,3.44767439]
[1673982724750,0.08803928,21330.0,21329.0,3.30853356]
[1673982724956,0.08803928,21330.0,21329.0,3.58673092]
[1673982726347,0.03071495,21330.0,21329.0,3.61973092]
[1673982726624,0.03071495,21330.0,21329.0,3.22280737]
[1673982726625,0.02571495,21330.0,21329.0,3.22280737]
[1673982726883,0.03057431,21330.0,21329.0,3.23718871]
[1673982727131,0.03057431,21330.0,21329.0,3.37631226]
[1673982727885,0.03057431,21330.0,21329.0,3.65861659]
[1673982728153,0.03057431,21330.0,21329.0,3.73056702]
[1673982728415,0.03057431,21330.0,21329.0,3.93674375]
[1673982728640,0.03057431,21330.0,21329.0,3.65852986]
[1673982728860,0.03057431,21330.0,21329.0,4.35648192]
[1673982729111,0.03057431,21330.0,21329.0,4.07833236]
[1673982729897,0.03057431,21330.0,21329.0,3.65852986]
[1673982730740,0.03057431,21330.0,21329.0,3.93659963]
[1673982731239,0.03057431,21330.0,21329.0,3.9366021]
[1673982731503,0.03057431,21330.0,21329.0,3.89294986]
[1673982731768,0.03057431,21330.0,21329.0,3.54518452]
[1673982731769,0.02692972,21330.0,21329.0,3.54518452]
[1673982732289,0.02692972,21330.0,21329.0,3.96498702]
[1673982732814,0.02692972,21330.0,21329.0,3.89263972]
[1673982733801,0.00805845,21333.0,21330.0,0.00912101]
[1673982734058,0.00805845,21333.0,21332.0,0.66188556]
[1673982734311,0.00805845,21333.0,21332.0,3.71832989]
[1673982734572,0.00805845,21333.0,21332.0,3.44042433]
[1673982734831,0.00805845,21333.0,21332.0,3.79704488]
[1673982735091,0.00805845,21333.0,21332.0,3.84407393]
[1673982735362,0.03294031,21333.0,21332.0,4.46872929]
[1673982735591,0.02894031,21333.0,21332.0,3.54159391]
[1673982735963,0.02894031,21333.0,21332.0,3.90820975]
[1673982736410,0.02894031,21333.0,21332.0,3.81920975]
[1673982736665,0.02894031,21333.0,21332.0,3.47221312]
[1673982736886,0.02894031,21333.0,21332.0,2.65771167]
[1673982737423,0.02894031,21333.0,21332.0,4.35900268]
[1673982737675,0.02894031,21333.0,21332.0,3.63220972]
[1673982737942,0.0079157,21336.0,21333.0,0.15]
[1673982738222,0.0079157,21336.0,21335.0,0.52205961]
[1673982738463,0.0079157,21336.0,21335.0,3.07186923]
[1673982738985,0.0079157,21336.0,21335.0,2.93315962]
[1673982739245,0.02760497,21336.0,21335.0,3.02115962]
[1673982740001,0.02760497,21336.0,21335.0,2.93315962]
[1673982741107,0.02760497,21336.0,21335.0,3.72938293]
[1673982741234,0.02760497,21336.0,21335.0,3.14620761]
[1673982741491,0.02760497,21336.0,21335.0,2.95000761]
[1673982741766,0.02429957,21336.0,21335.0,2.86198761]
[1673982742044,0.02429957,21336.0,21335.0,4.14783302]
[1673982742330,0.02409823,21336.0,21335.0,4.49414182]
[1673982742548,0.02409823,21336.0,21335.0,3.66762345]
[1673982742806,0.02409823,21336.0,21335.0,2.5255755]
[1673982743066,0.02409823,21336.0,21335.0,2.4375755]
[1673982743339,0.02409823,21336.0,21335.0,2.1677755]
[1673982743605,0.02409823,21336.0,21335.0,2.0797755]
[1673982744118,0.02409823,21336.0,21335.0,2.47303714]
[1673982744380,0.02409823,21336.0,21335.0,2.75991247]
[1673982744637,0.02409823,21336.0,21335.0,2.84791247]
[1673982744922,0.00862028,21337.0,21335.0,4.20571998]
[1673982745153,0.00862028,21337.0,21336.0,1.92764113]
[1673982745415,0.00862028,21337.0,21336.0,2.90731413]
[1673982745666,0.00862028,21337.0,21336.0,2.34917469]
[1673982746213,0.00862028,21337.0,21336.0,2.43717469]
[1673982746442,0.0092284,21338.0,21337.0,0.15496981]
[1673982746691,0.0092284,21338.0,21337.0,1.7270095]
[1673982746949,0.0092284,21338.0,21337.0,1.5449945]
[1673982747261,0.02956703,21338.0,21337.0,1.5449945]
[1673982747500,0.02956703,21338.0,21337.0,1.7799245]
[1673982748537,0.02956703,21338.0,21337.0,2.0799245]
[1673982748902,0.02956703,21338.0,21337.0,2.1679245]
[1673982749055,0.02956703,21338.0,21337.0,1.9335945]
[1673982749319,0.02956703,21338.0,21337.0,1.8455945]
[1673982749571,0.02956703,21338.0,21337.0,1.9955945]
[1673982751425,0.03056703,21338.0,21337.0,1.9955945]
[1673982751650,0.03156703,21338.0,21337.0,2.0765945]
[1673982752431,0.02764211,21338.0,21337.0,2.0765945]
[1673982752967,0.02764211,21338.0,21337.0,3.7537884]
[1673982753227,0.02764211,21338.0,21337.0,3.73170734]
[1673982753228,0.01820891,21338.0,21337.0,3.73170734]
[1673982753475,0.60862028,21339.0,21338.0,0.15]
[1673982753755,0.60862028,21339.0,21338.0,2.58020674]
[1673982753986,0.60862028,21339.0,21338.0,2.06477569]
[1673982754246,0.62803807,21339.0,21338.0,2.06477569]
[1673982754783,0.62903807,21339.0,21338.0,2.14777569]
[1673982755784,0.62903807,21339.0,21338.0,2.28618424]
[1673982756352,0.00791383,21342.0,21339.0,0.2842]
[1673982756691,0.00791383,21342.0,21340.0,0.15]
[1673982756861,0.00791383,21342.0,21340.0,0.1585]
[1673982757146,0.00791383,21342.0,21340.0,2.53121978]
[1673982757672,5.6e-07,21341.0,21340.0,2.53121978]
[1673982757935,0.00791383,21342.0,21340.0,2.62421978]
[1673982758224,0.00791383,21342.0,21341.0,1.13001173]
[1673982758479,0.00791383,21342.0,21341.0,2.40994073]
[1673982758780,0.00791383,21342.0,21341.0,2.41501415]
[1673982759034,0.00791383,21342.0,21341.0,1.99550411]
[1673982760073,0.00791383,21342.0,21341.0,2.08850411]
[1673982760336,0.02496847,21342.0,21341.0,2.08850411]
[1673982761337,0.02496847,21342.0,21341.0,1.93850411]
[1673982761961,0.02496847,21342.0,21341.0,2.08850411]
[1673982762647,0.02496847,21342.0,21341.0,1.93850411]
[1673982763160,0.02496847,21342.0,21341.0,1.63850411]
[1673982764199,0.02496847,21342.0,21341.0,1.54550411]
[1673982764714,0.02496847,21342.0,21341.0,1.93850411]
[1673982765480,0.02496847,21342.0,21341.0,1.86370411]
[1673982768571,0.02496847,21342.0,21341.0,1.86356411]
[1673982768837,0.02496847,21342.0,21341.0,2.01356411]
[1673982769108,0.02496847,21342.0,21341.0,1.86356411]
[1673982769677,0.02496847,21342.0,21341.0,2.09784411]
[1673982769947,0.02496847,21342.0,21341.0,2.32264411]
[1673982770739,0.02496847,21342.0,21341.0,3.2812177]
[1673982771534,0.02496847,21342.0,21341.0,2.32264411]
[1673982772061,0.02496847,21342.0,21341.0,3.28105858]
[1673982772827,0.02161364,21342.0,21341.0,3.88512142]
[1673982773079,0.02161364,21342.0,21341.0,3.65084142]
[1673982773339,0.02161364,21342.0,21341.0,4.23188544]
[1673982773619,0.02161364,21342.0,21341.0,3.46560138]
[1673982773847,0.02161364,21342.0,21341.0,3.53592506]
[1673982774595,0.02161364,21342.0,21341.0,3.39701399]
[1673982774848,0.02161364,21342.0,21341.0,3.67396799]
[1673982775611,0.00939905,21345.0,21341.0,3.95941142]
[1673982775874,0.00939905,21345.0,21344.0,0.21368444]
[1673982776159,0.00939905,21345.0,21344.0,3.73631952]
[1673982776900,0.00939905,21345.0,21344.0,3.69905183]
[1673982777169,0.02584508,21345.0,21344.0,3.95323873]
[1673982777468,0.02584508,21345.0,21344.0,4.09213353]
[1673982777710,0.02584508,21345.0,21344.0,4.23100984]
[1673982778235,0.02584508,21345.0,21344.0,3.83795643]
[1673982780228,0.02584508,21345.0,21344.0,3.01418645]
[1673982780481,0.02584508,21345.0,21344.0,3.95844457]
[1673982780732,0.02584508,21345.0,21344.0,3.95828998]
[1673982781253,0.02584508,21345.0,21344.0,4.23605885]
[1673982781974,0.02584508,21345.0,21344.0,4.09673735]
[1673982782220,0.02584508,21345.0,21344.0,3.53216254]
[1673982782749,0.0223893,21345.0,21344.0,3.78664561]
[1673982783004,0.0223893,21345.0,21344.0,3.78653871]
[1673982783263,0.0223893,21345.0,21344.0,3.81009234]
[1673982783793,0.0223893,21345.0,21344.0,4.01852522]
[1673982784030,0.0223893,21345.0,21344.0,3.54318564]
[1673982784279,0.0223893,21345.0,21344.0,3.55243202]
[1673982784542,0.0223893,21345.0,21344.0,3.47763202]
[1673982784812,0.0223893,21345.0,21344.0,3.73153951]
[1673982785048,0.0223893,21345.0,21344.0,3.73152174]
[1673982785568,0.0223893,21345.0,21344.0,4.03152174]
[1673982785818,0.0223893,21345.0,21344.0,2.9394364]
[1673982786079,0.0223893,21345.0,21344.0,2.50048185]
[1673982786314,0.0223893,21345.0,21344.0,2.49198185]
[1673982786605,0.0223893,21345.0,21344.0,3.00046449]
[1673982787388,0.0223893,21345.0,21344.0,2.4624214]
[1673982787912,0.0223893,21345.0,21344.0,2.33196685]
[1673982788174,0.0223893,21345.0,21344.0,3.85795377]
[1673982788425,0.0223893,21345.0,21344.0,3.78849614]
[1673982788703,0.0223893,21345.0,21344.0,4.13587231]
[1673982789225,0.0223893,21345.0,21344.0,3.78849614]
[1673982789478,0.0223893,21345.0,21344.0,3.85794251]
[1673982790029,0.0223893,21345.0,21344.0,3.7191193]
[1673982790292,0.0223893,21345.0,21344.0,3.99715457]
[1673982790545,0.0223893,21345.0,21344.0,4.13597778]
[1673982790802,0.0223893,21345.0,21344.0,3.85794251]
[1673982792371,0.0223893,21345.0,21344.0,3.99714743]
[1673982792678,0.0223893,21345.0,21344.0,3.99713561]
[1673982792963,0.0223893,21345.0,21344.0,4.13597285]
[1673982793756,0.0223893,21345.0,21344.0,3.85794251]
[1673982794035,0.0223893,21345.0,21344.0,3.62368251]
[1673982794362,0.0223893,21345.0,21344.0,3.76321866]
[1673982794618,0.02510293,21345.0,21344.0,1.90257179]
[1673982794862,0.02510293,21345.0,21344.0,1.64264008]
[1673982795113,0.02510293,21345.0,21344.0,1.17412508]
[1673982795760,0.0223893,21345.0,21344.0,1.03499516]
[1673982796032,0.02510293,21345.0,21344.0,1.03003]
[1673982796289,0.17430293,21345.0,21344.0,0.93703]
[1673982796551,0.17530293,21345.0,21344.0,1.02203]
[1673982796827,0.17430293,21345.0,21344.0,0.93703]
[1673982797086,0.49589093,21345.0,21344.0,0.553515]
[1673982797342,0.17530293,21345.0,21344.0,0.553515]
[1673982797599,0.17530293,21345.0,21344.0,0.085]
[1673982797854,0.49589093,21345.0,21344.0,0.085]
[1673982799423,0.49489093,21345.0,21342.0,0.468546]
[1673982799678,0.10050293,21345.0,21344.0,0.079]
[1673982799937,0.49489093,21345.0,21342.0,0.468546]
[1673982800210,0.10050293,21345.0,21344.0,0.046]
[1673982800465,0.49489093,21345.0,21342.0,0.468546]
[1673982800764,0.49489093,21345.0,21342.0,0.547546]
[1673982800765,0.0748,21343.0,21342.0,0.547546]
[1673982800988,0.395388,21343.0,21342.0,0.547546]
[1673982801792,0.395388,21343.0,21342.0,0.468546]
[1673982802058,0.395388,21343.0,21341.0,0.468562]
[1673982802297,0.01709163,21343.0,21342.0,0.079]
[1673982802548,0.41187963,21343.0,21342.0,0.079]
[1673982803323,0.56459326,21343.0,21342.0,0.079]
[1673982803583,0.56459326,21343.0,21339.0,0.468608]
[1673982803584,0.15,21342.0,21339.0,0.937219]
[1673982803835,0.41552595,21342.0,21341.0,0.079]
[1673982804073,1.088547,21342.0,21341.0,0.079]
[1673982804623,1.088547,21342.0,21339.0,0.468608]
[1673982804884,0.0745,21340.0,21339.0,0.468608]
[1673982805133,0.39780163,21340.0,21338.0,0.937265]
[1673982805389,0.0745,21340.0,21338.0,0.937265]
[1673982805643,0.0745,21340.0,21338.0,0.468635]
[1673982805941,0.0745,21340.0,21339.0,0.073]
[1673982806188,0.395088,21340.0,21337.0,0.46865]
[1673982806445,0.320588,21339.0,21338.0,0.072]
[1673982806716,0.320588,21339.0,21338.0,0.540647]
[1673982807005,0.14953049,21339.0,21338.0,0.540647]
[1673982807287,0.15224412,21339.0,21338.0,0.072]
[1673982807505,0.15224412,21339.0,21337.0,0.468659]
[1673982807771,0.0742,21338.0,21337.0,1.010328]
[1673982808031,0.0742,21338.0,21337.0,0.937328]
[1673982808310,0.0742,21338.0,21337.0,0.468669]
[1673982808826,0.0742,21338.0,21337.0,0.072]
[1673982809104,0.394788,21338.0,21336.0,0.00474283]
[1673982809359,0.56027342,21338.0,21337.0,0.072]
[1673982809622,1.03146142,21338.0,21337.0,0.072]
[1673982810148,0.56281442,21338.0,21337.0,0.072]
[1673982810412,0.56081442,21338.0,21336.0,0.00474283]
[1673982810663,0.395388,21337.0,21336.0,0.073]
[1673982810942,0.395388,21337.0,21335.0,0.00898936]
[1673982811225,0.16742642,21338.0,21335.0,0.00898936]
[1673982811226,0.395388,21336.0,21335.0,0.00898936]
[1673982811686,0.0748,21336.0,21335.0,0.00898936]
[1673982812263,0.149,21336.0,21335.0,0.08098936]
[1673982812493,0.619588,21336.0,21335.0,0.00898936]
[1673982812751,1.55897,21336.0,21335.0,0.08098936]
[1673982813275,1.10614861,21336.0,21335.0,0.08098936]
[1673982813534,0.48745761,21336.0,21335.0,0.08098936]
[1673982814839,0.49017124,21336.0,21335.0,0.08098936]
[1673982815100,1.42755324,21336.0,21335.0,0.08098936]
[1673982815615,2.1554188,21336.0,21335.0,0.08098936]
[1673982815876,1.96469285,21336.0,21335.0,1e-08]
[1673982816157,1.71145324,21336.0,21335.0,1e-08]
[1673982816684,2.60265324,21336.0,21335.0,1e-08]
[1673982817479,3.07134424,21336.0,21333.0,0.00899164]
[1673982817773,0.1496,21334.0,21333.0,0.00899164]
[1673982818030,0.938923,21334.0,21333.0,0.00899164]
[1673982818846,1.029923,21334.0,21333.0,0.00899164]
[1673982819355,1.498658,21334.0,21333.0,0.00899164]
[1673982819615,1.90763256,21334.0,21333.0,0.00899164]
[1673982820385,1.029923,21334.0,21333.0,0.00899164]
[1673982820630,1.498658,21334.0,21333.0,0.00899164]
[1673982822174,1.51443331,21334.0,21333.0,0.00899164]
[1673982822441,1.66443331,21334.0,21333.0,0.00899164]
[1673982823223,1.51443331,21334.0,21333.0,0.00899164]
[1673982824268,1.66443331,21334.0,21333.0,0.00899164]
[1673982824769,1.82853386,21334.0,21333.0,0.00899164]
[1673982825033,2.41363386,21334.0,21333.0,0.00899164]
[1673982825306,2.11363386,21334.0,21333.0,0.00899164]
[1673982826096,2.41363386,21334.0,21333.0,0.00899164]
[1673982827923,0.00224124,21332.0,21328.0,0.00983899]
[1673982828156,0.1496,21329.0,21328.0,0.00884781]
[1673982828452,1.59860395,21329.0,21328.0,0.00884781]
[1673982828699,1.258278,21329.0,21328.0,0.00884781]
[1673982829221,1.27344326,21329.0,21328.0,0.00884781]
[1673982830310,1.28244326,21329.0,21328.0,0.00984781]
[1673982830872,0.81359826,21329.0,21328.0,0.00984781]
[1673982831140,0.34475326,21329.0,21328.0,0.00984781]
[1673982831408,0.34746689,21329.0,21328.0,0.00984781]
[1673982831946,0.81631189,21329.0,21328.0,0.00984781]
[1673982832201,0.34746689,21329.0,21328.0,0.00984781]
[1673982832469,0.02687889,21329.0,21328.0,0.00984781]
[1673982833273,0.02416526,21329.0,21328.0,0.5808953]
[1673982833581,0.02416526,21329.0,21328.0,0.99547369]
[1673982835332,0.02416526,21329.0,21328.0,1.44547369]
[1673982837646,0.02416526,21329.0,21328.0,1.52027369]
[1673982838093,0.02416526,21329.0,21328.0,2.08037538]
[1673982838321,0.02075343,21329.0,21328.0,2.4605487]
[1673982839136,0.02405153,21329.0,21328.0,2.4605487]
[1673982839933,0.02405153,21329.0,21328.0,1.90260443]
[1673982840369,0.02405153,21329.0,21328.0,1.85557538]
[1673982840803,0.02405153,21329.0,21328.0,1.55557538]
[1673982841496,0.02405153,21329.0,21328.0,1.06987369]
[1673982842280,0.02405153,21329.0,21328.0,1.36987369]
[1673982843328,0.02676516,21329.0,21328.0,1.02704569]
[1673982843587,0.02405153,21329.0,21328.0,0.95264569]
[1673982844090,0.02405153,21329.0,21328.0,0.01491169]
[1673982845085,0.02405153,21329.0,21328.0,0.00984781]
[1673982845383,0.34463953,21329.0,21328.0,0.00984781]
[1673982845853,0.02405153,21329.0,21328.0,0.00984781]
[1673982846892,0.34463953,21329.0,21328.0,0.00984781]
[1673982847169,0.38181711,21329.0,21328.0,0.00984781]
[1673982847429,1.31950711,21329.0,21328.0,0.00984781]
[1673982847683,1.28504316,21329.0,21328.0,0.00984781]
[1673982848209,0.47519604,21328.0,21326.0,0.00973971]
[1673982848463,0.320588,21327.0,21326.0,0.00973971]
[1673982848773,2.095066,21327.0,21326.0,0.00973971]
[1673982849289,2.11132208,21327.0,21326.0,0.00973971]
[1673982849544,1.17354408,21327.0,21326.0,0.00973971]
[1673982850355,1.26554408,21327.0,21326.0,0.00973971]
[1673982850851,1.17354408,21327.0,21326.0,0.00973971]
[1673982851103,2.11132208,21327.0,21326.0,0.00973971]
[1673982851391,2.20232208,21327.0,21326.0,0.00973971]
[1673982851915,2.61528948,21327.0,21326.0,0.00973971]
[1673982852181,2.20232208,21327.0,21326.0,0.00973971]
[1673982852682,2.50232208,21327.0,21326.0,0.00973971]
[1673982852934,2.57712208,21327.0,21326.0,0.00973971]
[1673982853262,2.84264803,21327.0,21324.0,0.01137445]
[1673982853455,0.09600595,21325.0,21324.0,7.445e-05]
[1673982853713,0.15,21324.0,21323.0,0.01168153]
[1673982853977,1.483298,21324.0,21323.0,0.01168153]
[1673982854213,1.258498,21324.0,21323.0,0.01168153]
[1673982855238,0.80562001,21324.0,21323.0,0.01168153]
[1673982855523,1.27457501,21324.0,21323.0,0.01168153]
[1673982855831,1.36557501,21324.0,21323.0,0.01168153]
[1673982856082,1.27457501,21324.0,21323.0,0.01168153]
[1673982856328,1.36557501,21324.0,21323.0,0.01168153]
[1673982857136,0.89933364,21324.0,21323.0,0.01168153]
[1673982857665,1.36828864,21324.0,21323.0,0.01168153]
[1673982857949,2.13966266,21324.0,21323.0,0.01168153]
[1673982858203,2.51402198,21324.0,21323.0,0.01168153]
[1673982858504,2.72831523,21324.0,21323.0,0.01168153]
[1673982858772,2.58822198,21324.0,21323.0,0.01168153]
[1673982859019,0.15,21323.0,21320.0,0.03244223]
[1673982859296,0.1496,21321.0,21320.0,0.03244223]
[1673982859533,1.56095063,21321.0,21320.0,0.03244223]
[1673982860071,1.86095063,21321.0,21320.0,0.03244223]
[1673982860323,1.96679706,21321.0,21320.0,0.03244223]
[1673982860588,1.51679706,21321.0,21320.0,0.02744223]
[1673982861398,1.51679706,21321.0,21320.0,0.12962272]
[1673982861399,1.36719706,21321.0,21320.0,0.12962272]
[1673982861658,0.89817606,21321.0,21320.0,0.02744223]
[1673982861926,0.80717606,21321.0,21320.0,0.02744223]
[1673982862448,0.89817606,21321.0,21320.0,0.02744223]
[1673982862703,0.80717606,21321.0,21320.0,0.02744223]
[1673982863208,0.89817606,21321.0,21320.0,0.02744223]
[1673982863458,0.33815506,21321.0,21320.0,0.02744223]
[1673982863719,0.42644143,21321.0,21320.0,0.02744223]
[1673982863993,0.10584643,21321.0,21320.0,0.02744223]
[1673982864519,0.42644143,21321.0,21320.0,0.02744223]
[1673982864770,0.33544143,21321.0,21320.0,0.02744223]
[1673982865031,0.89546243,21321.0,21320.0,0.02744223]
[1673982865261,0.42644143,21321.0,21320.0,0.02744223]
[1673982865984,0.89546243,21321.0,21320.0,0.02744223]
[1673982866521,1.36448343,21321.0,21320.0,0.02744223]
[1673982866769,1.27348343,21321.0,21320.0,0.02744223]
[1673982867262,0.80717606,21321.0,21320.0,0.02744223]
[1673982867766,1.36719706,21321.0,21320.0,0.02744223]
[1673982868022,1.35099706,21321.0,21320.0,0.01744223]
[1673982868289,1.77729386,21321.0,21320.0,0.01744223]
[1673982868499,2.06009386,21321.0,21320.0,0.01744223]
[1673982868799,2.30209386,21321.0,21320.0,0.01744223]
[1673982869059,0.15,21320.0,21315.0,0.01263031]
[1673982869322,0.0748,21318.0,21315.0,0.01263031]
[1673982869576,0.320595,21317.0,21315.0,0.01263031]
[1673982869828,0.320595,21316.0,21315.0,0.01263031]
[1673982870079,1.258857,21316.0,21315.0,0.01263031]
[1673982870574,0.320595,21316.0,21315.0,0.01263031]
[1673982871087,0.4849582,21317.0,21315.0,0.01263031]
[1673982871342,0.0158492,21317.0,21315.0,0.48178331]
[1673982871607,0.0158492,21317.0,21315.0,0.95093631]
[1673982871608,0.091,21316.0,21315.0,0.95093631]
[1673982871862,0.0158492,21317.0,21315.0,0.95093631]
[1673982872694,0.1068492,21317.0,21315.0,0.95093631]
[1673982873437,1.0450732,21317.0,21315.0,0.01163031]
[1673982873688,0.320595,21316.0,21315.0,0.01163031]
[1673982874000,0.789726,21316.0,21315.0,0.01163031]
[1673982874212,0.80554567,21316.0,21315.0,0.01163031]
[1673982874468,0.01581967,21316.0,21315.0,0.01163031]
[1673982875003,0.57595067,21316.0,21315.0,0.01163031]
[1673982875271,0.469131,21316.0,21315.0,0.01163031]
[1673982875529,0.091,21316.0,21315.0,0.48078331]
[1673982875790,0.091,21316.0,21315.0,1.09993631]